[Event "LEM Niedersachsen-A-Open 2025"]
[Site "Verden"]
[Date "2025.01.05"]
[Round "7.20"]
[White "Gehrke, Mathias"]
[Black "Boehnke, Marc"]
[Result "1/2-1/2"]
[ECO "A33"]
[WhiteElo "1873"]
[BlackElo "1927"]
[Annotator "NA RC"]
[PlyCount "80"]
[EventDate "2024.12.27"]
[EventType "swiss"]
[EventCountry "GER"]
[SourceTitle "playchess.com"]
[Source "ChessBase"]
[SourceQuality "1"]
[TimeControl "40/5400+30:1800+30"]

1. d4 {[%emt 0:00:05]} Nf6 {[%emt 0:06:14]} 2. g3 {[%emt 0:01:08]} e6 {[%emt 0:00:37]} 3. Bg2 {[%emt 0:00:13]} c5 {[%emt 0:00:13]} 4. Nf3 {[%emt 0:01:46]} Nc6 {[%emt 0:02:53]} 5. O-O {[%emt 0:01:37]} Be7 {[%emt 0:01:12]} 6. c4 {[%emt 0:03:50]} cxd4 {[%emt 0:02:08]} 7. Nxd4 {[%emt 0:00:38]} a6 {[%emt 0:00:07]} 8. Nc3 {[%emt 0:02:18]} O-O {[%emt 0:01:06]} 9. Nb3 {[%emt 0:15:36]} Ne5 {[%emt 0:07:26]} 10. c5 {[%emt 0:07:01]} Qc7 {[%emt 0:09:00]} 11. Na4 $16 {[%emt 0:07:10]} d6 {[%emt 0:15:44]} 12. cxd6 {[%emt 0:08:11]} Bxd6 {[%emt 0:00:04]} 13. Bf4 {[%emt 0:05:04]} Bd7 {[%emt 0:05:56]} 14. Rc1 {[%emt 0:00:56]} Bc6 {[%emt 0:00:02]} 15. Bxc6 {[%emt 0:06:35]} bxc6 {[%emt 0:00:04]} 16. Nd4 {[%emt 0:06:24]} Rfd8 {[%emt 0:04:27]} 17. Qc2 {[%emt 0:07:10]} Rac8 {[%emt 0:04:48]} 18. Nc5 {[%emt 0:04:06]} Qb6 {[%emt 0:15:28]} 19. Ndb3 {[%emt 0:01:00]} Nd5 {[%emt 0:00:42]} 20. Bd2 {[%emt 0:01:52]} Nb4 {[%emt 0:02:01]} 21. Bxb4 {[%emt 0:01:13]} Qxb4 {[%emt 0:00:21]} 22. Rfd1 {[%emt 0:02:21]} a5 {[%emt 0:04:30]} 23. Rd4 {[%emt 0:00:26]} Qb6 {[%emt 0:00:49]} 24. Rcd1 {[%emt 0:02:57]} Be7 {[%emt 0:01:32]} 25. Rxd8+ {[%emt 0:01:18]} Bxd8 {[%emt 0:03:17]} 26. Qe4 {[%emt 0:00:45]} Bf6 {[%emt 0:01:03]} 27. Kg2 {[%emt 0:00:52]} Qc7 {[%emt 0:02:41]} 28. f4 {[%emt 0:02:22]} Ng6 {[%emt 0:00:27]} 29. Rd7 {[%emt 0:00:24]} Qb8 {[%emt 0:00:39]} 30. f5 {[%emt 0:05:07]} exf5 {[%emt 0:00:37]} 31. Qxf5 {[%emt 0:00:02]} Re8 {[%emt 0:01:12]} 32. e4 {[%emt 0:01:06]} Qb5 {[%emt 0:01:37]} 33. a4 {[%emt 0:00:56]} Qe2+ {[%emt 0:02:00]} 34. Qf2 {[%emt 0:00:01]} Qxf2+ {[%emt 0:00:32]} 35. Kxf2 {[%emt 0:00:01]} Bxb2 {[%emt 0:00:02]} 36. Nxa5 {[%emt 0:00:23]} Ne5 {[%emt 0:00:20]} 37. Rd1 {[%emt 0:00:47]} f6 {[%emt 0:03:02]} 38. Nab3 {[%emt 0:01:26]} Ra8 {[%emt 0:00:58]} 39. Rd2 {[%emt 0:01:25]} Bc3 {[%emt 0:01:08]} 40. Rc2 {[%emt 0:00:33]} Bb4 {[%emt 0:00:57]} 1/2-1/2

[Event "LEM Niedersachsen-A-Open 2025"]
[Site "Verden"]
[Date "2025.01.05"]
[Round "7.21"]
[White "Holtwessels, Jan"]
[Black "Monnerjahn, Lukas"]
[Result "1-0"]
[ECO "B22"]
[WhiteElo "1812"]
[BlackElo "1909"]
[Annotator "RC"]
[PlyCount "149"]
[EventDate "2024.12.27"]
[EventType "swiss"]
[EventCountry "GER"]
[SourceTitle "playchess.com"]
[Source "ChessBase"]
[SourceQuality "1"]
[TimeControl "40/5400+30:1800+30"]

1. e4 {[%emt 0:00:03]} c5 {[%emt 0:00:03]} 2. Nf3 {[%emt 0:00:08]} Nc6 {[%emt 0:00:02]} 3. c3 {[%emt 0:00:12]} Nf6 {[%emt 0:00:08]} 4. e5 {[%emt 0:00:16]} Nd5 {[%emt 0:00:04]} 5. Bc4 {[%emt 0:00:41]} Nb6 {[%emt 0:00:27]} 6. Bb3 {[%emt 0:00:09]} d5 {[%emt 0:01:37]} 7. exd6 {[%emt 0:00:41]} exd6 {[%emt 0:00:10]} 8. d4 {[%emt 0:03:06]} c4 {[%emt 0:12:59]} 9. Bc2 {[%emt 0:01:31]} Bg4 {[%emt 0:02:33]} 10. O-O {[%emt 0:03:04]} Be7 {[%emt 0:04:06]} 11. h3 {[%emt 0:02:01]} Bh5 {[%emt 0:01:04]} 12. a4 {[%emt 0:02:06]} O-O {[%emt 0:07:28]} 13. a5 {[%emt 0:01:58]} Nd7 {[%emt 0:00:25]} 14. a6 {[%emt 0:00:54]} b5 {[%emt 0:00:22]} 15. Re1 {[%emt 0:10:28]} d5 {[%emt 0:06:33]} 16. Bf4 {[%emt 0:04:58]} Nf6 {[%emt 0:00:46]} 17. Nbd2 {[%emt 0:03:21]} Bd6 {[%emt 0:07:25]} 18. Bg5 {[%emt 0:06:47]} Be7 {[%emt 0:14:08]} 19. Qb1 {[%emt 0:03:12]} Bg6 {[%emt 0:01:20]} 20. Bxg6 {[%emt 0:06:58]} hxg6 {[%emt 0:00:04]} 21. Ne5 {[%emt 0:01:34]} Nxe5 {[%emt 0:07:23]} 22. dxe5 {[%emt 0:02:32]} Nd7 {[%emt 0:00:25]} 23. Bxe7 {[%emt 0:00:54]} Qxe7 {[%emt 0:00:03]} 24. Nf3 {[%emt 0:03:15]} Nc5 {[%emt 0:32:55]} 25. Nd4 {[%emt 0:05:16]} Nd3 {[%emt 0:00:00]} 26. Re3 {[%emt 0:00:46]} Rae8 {[%emt 0:00:00]} 27. Ra5 {[%emt 0:06:57]} Qg5 {[%emt 0:00:00]} 28. Nf3 {[%emt 0:02:54]} Qf4 {[%emt 0:00:00]} 29. Rxb5 {[%emt 0:03:07]} Rxe5 {[%emt 0:00:09]} 30. Rxe5 {[%emt 0:01:07]} Nxe5 {[%emt 0:00:09]} 31. Nxe5 {[%emt 0:01:15]} Qxe5 {[%emt 0:00:01]} 32. Qd1 {[%emt 0:02:19]} Rd8 {[%emt 0:00:15]} 33. Rb7 {[%emt 0:04:01]} d4 {[%emt 0:00:42]} 34. Rxa7 {[%emt 0:02:55]} d3 {[%emt 0:00:11]} 35. Qd2 {[%emt 0:02:51]} Qe2 {[%emt 0:00:23]} 36. Qf4 {[%emt 0:00:44]} Qe8 {[%emt 0:01:22]} 37. Qd2 {[%emt 0:04:55]} Qe2 {[%emt 0:00:05]} 38. Qg5 {[%emt 0:01:08]} Qe8 {[%emt 0:00:08]} 39. Re7 {[%emt 0:00:41]} Qf8 {[%emt 0:00:58]} 40. Re1 {[%emt 0:00:42]} d2 {[%emt 0:00:24]} 41. Rd1 {[%emt 0:30:23]} Qe8 {[%emt 0:33:06]} 42. Kh2 {[%emt 0:06:28]} Qd7 {[%emt 0:00:00]} 43. a7 {[%emt 0:00:00]} Qc7+ {[%emt 0:00:00]} 44. g3 {[%emt 0:00:00]} Ra8 {[%emt 0:00:00]} 45. Rxd2 {[%emt 0:00:00]} Qxa7 {[%emt 0:00:00]} 46. Qh4 {[%emt 0:00:00]} Rc8 {[%emt 0:00:00]} 47. Qg4 {[%emt 0:00:00]} Qc5 {[%emt 0:00:00]} 48. Qf4 {[%emt 0:00:00]} Qb6 {[%emt 0:00:00]} 49. Rd7 {[%emt 0:00:00]} Qf6 {[%emt 0:00:00]} 50. Qxf6 {[%emt 0:00:00]} gxf6 {[%emt 0:00:00]} 51. Kg2 {[%emt 0:00:00]} Rb8 {[%emt 0:00:00]} 52. Rc7 {[%emt 0:00:00]} Rxb2 {[%emt 0:00:00]} 53. Rxc4 {[%emt 0:00:00]} Kf8 {[%emt 0:00:00]} 54. h4 {[%emt 0:00:00]} Ke7 {[%emt 0:00:00]} 55. g4 {[%emt 0:00:00]} f5 {[%emt 0:00:00]} 56. gxf5 {[%emt 0:00:00]} gxf5 {[%emt 0:00:00]} 57. Kg3 {[%emt 0:00:00]} Kf6 {[%emt 0:00:00]} 58. Rc6+ {[%emt 0:00:00]} Kg7 {[%emt 0:00:00]} 59. c4 {[%emt 0:00:00]} Rc2 {[%emt 0:00:00]} 60. Rc8 {[%emt 0:00:00]} Rc3+ {[%emt 0:00:00]} 61. f3 {[%emt 0:00:15]} Rc1 {[%emt 0:00:00]} 62. c5 {[%emt 0:01:12]} Rg1+ {[%emt 0:00:00]} 63. Kf4 {[%emt 0:00:33]} Rh1 {[%emt 0:00:00]} 64. Kg5 {[%emt 0:00:46]} Rg1+ {[%emt 0:00:00]} 65. Kxf5 {[%emt 0:00:26]} Rh1 {[%emt 0:00:00]} 66. Kg4 {[%emt 0:01:30]} Rg1+ {[%emt 0:00:00]} 67. Kh3 {[%emt 0:00:41]} Rh1+ {[%emt 0:00:00]} 68. Kg3 {[%emt 0:00:07]} Rg1+ {[%emt 0:00:00]} 69. Kh2 {[%emt 0:00:09]} Rc1 {[%emt 0:00:00]} 70. c6 {[%emt 0:00:25]} Kf6 {[%emt 0:00:00]} 71. Kg3 {[%emt 0:01:35]} Rg1+ {[%emt 0:00:00]} 72. Kf4 {[%emt 0:00:16]} Rh1 {[%emt 0:00:00]} 73. Kg4 {[%emt 0:00:24]} Rg1+ {[%emt 0:00:00]} 74. Kh5 {[%emt 0:00:00]} Rg7 {[%emt 0:00:00]} 75. c7 {[%emt 0:00:32]} 1-0

[Event "LEM Niedersachsen-A-Open 2025"]
[Site "Verden"]
[Date "2025.01.05"]
[Round "7.22"]
[White "Eschholz, Enno"]
[Black "Bangert, Jonas"]
[Result "1/2-1/2"]
[ECO "B26"]
[WhiteElo "2121"]
[BlackElo "1894"]
[Annotator "TA"]
[PlyCount "99"]
[EventDate "2024.12.27"]
[EventType "swiss"]
[EventCountry "GER"]
[SourceTitle "playchess.com"]
[Source "ChessBase"]
[SourceQuality "1"]
[TimeControl "40/5400+30:1800+30"]

{[%evp 14,99,8,0,0,2,4,0,37,51,53,41,57,62,60,48,62,67,58,54,122,112,135,127,133,84,88,0,116,86,87,75,147,39,139,63,80,-4,0,-5,-5,-24,-12,-15,0,-35,-34,-27,-6,-25,-24,-34,-24,-26,-23,-17,18,22,29,26,20,30,50,43,52,51,54,42,45,51,50,41,41,52,54,45,56,56,56,56,56,56,56,56,56,56,61,56]} 1. e4 {[%emt 0:00:01]} c5 {[%emt 0:00:04]} 2. Nc3 {[%emt 0:00:08]} g6 {[%emt 0:00:06]} 3. g3 {[%emt 0:00:12]} Nc6 {[%emt 0:00:38]} 4. d3 {[%emt 0:00:12]} Bg7 {[%emt 0:00:27]} 5. Be3 {[%emt 0:00:26]} d6 {[%emt 0:01:38]} 6. Bg2 {[%emt 0:00:08]} Nf6 {[%emt 0:01:38]} 7. h3 {[%emt 0:00:55]} O-O {[%emt 0:00:39]} 8. Qd2 {[%emt 0:01:03]} Ne8 {[%emt 0:02:30]} 9. Bh6 {[%emt 0:01:32]} e5 {[%emt 0:01:07]} 10. Nge2 {[%emt 0:01:39]} Nc7 {[%emt 0:01:56] The position is equal.} 11. Bxg7 {[%emt 0:02:15]} Kxg7 {[%emt 0:00:07]} 12. O-O {[%emt 0:00:19]} f6 {[%emt 0:07:47]} 13. f4 {[%emt 0:00:37]} Bd7 {[%emt 0:04:52]} 14. Nd1 {[%emt 0:00:59]} Qe7 {[%emt 0:01:29]} 15. c3 {[%emt 0:00:34]} b6 {[%emt 0:05:04]} 16. Ne3 {[%emt 0:00:31]} h6 {[%emt 0:02:29]} (16... Rad8 $14) 17. g4 $16 {[%emt 0:03:09]} Rae8 {[%emt 0:15:30]} 18. Rae1 {[%emt 0:07:11]} Qd8 {[%emt 0:03:58]} 19. Nc4 {[%emt 0:05:51]} (19. f5 $142) 19... Bc8 {[%emt 0:03:28]} 20. Ne3 {[%emt 0:00:30]} (20. f5 $16) 20... Ba6 {[%emt 0:10:04]} (20... Bd7 $1 $11 {keeps the balance.}) 21. Rf2 {[%emt 0:05:08]} Ne7 {[%emt 0:04:13]} 22. Ref1 {[%emt 0:02:50]} Bc8 {[%emt 0:02:25]} (22... g5 $142) 23. Ng3 {[%emt 0:04:47]} ({White should play} 23. h4 $16) 23... Kh7 {[%emt 0:09:28]} (23... exf4 $14 24. Rxf4 d5) 24. a3 {[%emt 0:04:19]} (24. f5 $16) 24... Ne6 $14 {[%emt 0:05:57] [#]} 25. Ne2 {[%emt 0:02:29]} ({White should try} 25. f5 $1 $16 {[%cal Rf5e6]} Nf4 26. fxg6+ Nexg6 27. Kh2) 25... g5 $1 $11 {[%emt 0:01:17]} 26. f5 {[%emt 0:03:38]} Nf4 {[%emt 0:01:09]} 27. Nxf4 {[%emt 0:01:06]} gxf4 {[%emt 0:04:30]} 28. Nc2 {[%emt 0:01:40]} Kg7 {[%emt 0:03:13]} 29. c4 {[%emt 0:04:12]} Rh8 {[%emt 0:00:57]} 30. Bf3 {[%emt 0:00:32]} Kf7 {[%emt 0:00:18]} 31. Kh2 {[%emt 0:02:32]} Bd7 {[%emt 0:00:34]} 32. Rg1 {[%emt 0:03:33]} Reg8 {[%emt 0:01:17]} 33. b4 {[%emt 0:00:39]} Ba4 {[%emt 0:01:30]} 34. Ne1 {[%emt 0:02:10]} Bd7 {[%emt 0:04:20]} 35. b5 {[%emt 0:00:13]} a6 {[%emt 0:00:08]} 36. a4 {[%emt 0:00:20]} axb5 {[%emt 0:00:04]} 37. axb5 {[%emt 0:00:26]} Rg7 {[%emt 0:00:37]} 38. Rfg2 {[%emt 0:00:43] White is slightly better.} Rhg8 {[%emt 0:00:10]} 39. Nc2 {[%emt 0:04:52]} Qc7 {[%emt 0:01:10]} 40. Ra1 {[%emt 0:00:25]} Qb7 {[%emt 0:00:11]} 41. Ne1 {[%emt 0:30:47]} Ra8 {[%emt 0:30:05]} 42. Qc3 {[%emt 0:00:46]} Rgg8 {[%emt 0:00:22]} 43. Rga2 {[%emt 0:00:39]} Rxa2+ {[%emt 0:00:15]} 44. Rxa2 {[%emt 0:00:19]} Ra8 {[%emt 0:00:07]} 45. Qa1 {[%emt 0:00:09]} Rxa2+ {[%emt 0:00:15]} 46. Qxa2 {[%emt 0:00:07]} Kg7 {[%emt 0:00:00]} 47. h4 {[%emt 0:00:00]} Be8 {[%emt 0:00:00]} 48. Bd1 {[%emt 0:00:00]} Nc8 {[%emt 0:00:00]} 49. Nf3 {[%emt 0:00:00] Black is weak on the light squares} Qa7 {[%emt 0:00:00]} 50. Qxa7+ {[%emt 0:00:00] Weighted Error Value: White=0.17 (very precise) /Black=0.15 (very precise) .  Mistake:       	White=5     	Black=4      Inaccurate:     	White=1     	Black=2      OK:         	White=13    	Black=16     Best:        	White=1     	---        Strong:       	---       	Black=1} 1/2-1/2

[Event "LEM Niedersachsen-A-Open 2025"]
[Site "Verden"]
[Date "2025.01.05"]
[Round "7.23"]
[White "Ludwig, Bernard"]
[Black "Moerke, Niklas"]
[Result "0-1"]
[ECO "D06"]
[WhiteElo "1962"]
[BlackElo "1875"]
[Annotator "RC"]
[PlyCount "136"]
[EventDate "2024.12.27"]
[EventType "swiss"]
[EventCountry "GER"]
[SourceTitle "playchess.com"]
[Source "ChessBase"]
[SourceQuality "1"]
[TimeControl "40/5400+30:1800+30"]

1. Nf3 {[%emt 0:00:01]} d5 {[%emt 0:01:44]} 2. d4 {[%emt 0:00:05]} Bf5 {[%emt 0:00:31]} 3. c4 {[%emt 0:00:19]} e6 {[%emt 0:01:23]} 4. Nc3 {[%emt 0:01:17]} Nf6 {[%emt 0:01:26]} 5. Qb3 {[%emt 0:10:55]} b6 {[%emt 0:02:11]} 6. Bg5 {[%emt 0:07:20]} c6 {[%emt 0:00:51]} 7. Ne5 {[%emt 0:10:36]} Be7 {[%emt 0:01:26]} 8. e3 {[%emt 0:05:21]} O-O {[%emt 0:01:12]} 9. Rc1 {[%emt 0:04:46]} Ng4 {[%emt 0:03:24]} 10. Bxe7 {[%emt 0:01:47]} Qxe7 {[%emt 0:03:17]} 11. Nxg4 {[%emt 0:01:52]} Bxg4 {[%emt 0:00:05]} 12. Bd3 {[%emt 0:02:28]} Nd7 {[%emt 0:00:38]} 13. h3 {[%emt 0:01:36]} Bh5 {[%emt 0:00:15]} 14. Qc2 {[%emt 0:01:23]} Bg6 {[%emt 0:01:10]} 15. Ne2 {[%emt 0:08:02]} Bxd3 {[%emt 0:06:33]} 16. Qxd3 {[%emt 0:00:08]} Qb4+ {[%emt 0:00:20]} 17. Qc3 {[%emt 0:01:21]} Qxc4 {[%emt 0:01:44]} 18. Qxc4 {[%emt 0:02:53]} dxc4 {[%emt 0:00:05]} 19. Rxc4 {[%emt 0:00:14]} c5 {[%emt 0:00:22]} 20. dxc5 {[%emt 0:05:25]} Nxc5 {[%emt 0:00:58]} 21. O-O {[%emt 0:01:37]} Rfd8 {[%emt 0:00:37]} 22. b4 {[%emt 0:05:09]} Na6 {[%emt 0:01:01]} 23. Rfc1 {[%emt 0:01:27]} g6 {[%emt 0:02:49]} 24. a3 {[%emt 0:05:44]} Rd3 {[%emt 0:00:51]} 25. R4c3 {[%emt 0:05:12]} Rad8 {[%emt 0:03:51]} 26. Nd4 {[%emt 0:02:09]} Rxc3 {[%emt 0:00:15]} 27. Rxc3 {[%emt 0:00:06]} Rd7 {[%emt 0:05:16]} 28. Rc8+ {[%emt 0:01:33]} Kg7 {[%emt 0:00:08]} 29. Ra8 {[%emt 0:00:36]} Rb7 {[%emt 0:04:39]} 30. Nb5 {[%emt 0:01:03]} Nc7 {[%emt 0:01:31]} 31. Rxa7 {[%emt 0:00:30]} Rxa7 {[%emt 0:00:05]} 32. Nxa7 {[%emt 0:00:05]} Kf8 {[%emt 0:02:02]} 33. Kf1 {[%emt 0:00:37]} Ke8 {[%emt 0:00:07]} 34. Nc8 {[%emt 0:01:37]} b5 {[%emt 0:00:32]} 35. Nd6+ {[%emt 0:00:59]} Ke7 {[%emt 0:00:16]} 36. Ne4 {[%emt 0:00:26]} Nd5 {[%emt 0:00:25]} 37. Ke1 {[%emt 0:01:26]} f5 {[%emt 0:02:51]} 38. Nc5 {[%emt 0:04:33]} Nc3 {[%emt 0:01:18]} 39. f3 {[%emt 0:00:27]} Kd6 {[%emt 0:03:12]} 40. Kf2 {[%emt 0:03:06]} Kd5 {[%emt 0:02:19]} 41. g4 {[%emt 0:04:57]} e5 {[%emt 0:01:17]} 42. g5 {[%emt 0:06:08]} e4 {[%emt 0:02:13]} 43. Nd7 {[%emt 0:12:02]} Kc4 {[%emt 0:02:01]} 44. Nf8 {[%emt 0:01:35]} Kd3 {[%emt 0:12:23]} 45. Nxh7 {[%emt 0:02:05]} Nd1+ {[%emt 0:01:21]} 46. Kg3 {[%emt 0:02:33]} Kxe3 {[%emt 0:01:05]} 47. fxe4 {[%emt 0:01:07]} f4+ {[%emt 0:00:32]} 48. Kh2 {[%emt 0:02:24]} f3 {[%emt 0:02:14]} 49. Nf6 {[%emt 0:00:35]} f2 {[%emt 0:00:43]} 50. Ng4+ {[%emt 0:00:51]} Kf3 {[%emt 0:01:33]} 51. Nxf2 {[%emt 0:01:49]} Nxf2 {[%emt 0:00:07]} 52. e5 {[%emt 0:02:00]} Ne4 {[%emt 0:00:30]} 53. e6 {[%emt 0:00:27]} Nd6 {[%emt 0:00:23]} 54. e7 {[%emt 0:01:23]} Ne8 {[%emt 0:00:09]} 55. h4 {[%emt 0:00:54]} Kg4 {[%emt 0:00:05]} 56. a4 {[%emt 0:00:37]} bxa4 {[%emt 0:00:30]} 57. b5 {[%emt 0:00:05]} a3 {[%emt 0:01:29]} 58. b6 {[%emt 0:00:04]} a2 {[%emt 0:00:02]} 59. b7 {[%emt 0:00:06]} a1=Q {[%emt 0:00:32]} 60. b8=Q {[%emt 0:00:10]} Qa2+ {[%emt 0:01:03]} 61. Kg1 {[%emt 0:00:34]} Qa1+ {[%emt 0:00:20]} 62. Kg2 {[%emt 0:00:25]} Qa2+ {[%emt 0:00:33]} 63. Kf1 {[%emt 0:00:15]} Qc4+ {[%emt 0:03:37]} 64. Kg2 {[%emt 0:01:21]} Qe4+ {[%emt 0:01:43]} 65. Kg1 {[%emt 0:00:58]} Qe3+ {[%emt 0:00:26]} 66. Kg2 {[%emt 0:00:25]} Qf3+ {[%emt 0:00:29]} 67. Kh2 {[%emt 0:00:49]} Qf2+ {[%emt 0:01:12]} 68. Kh1 {[%emt 0:00:09]} Qxh4+ {[%emt 0:00:14]} 0-1

[Event "LEM Niedersachsen-A-Open 2025"]
[Site "Verden"]
[Date "2025.01.05"]
[Round "7.24"]
[White "Rausch, Darius"]
[Black "Nolting, Dennis"]
[Result "1-0"]
[ECO "D02"]
[WhiteElo "1840"]
[BlackElo "1937"]
[Annotator "RC"]
[PlyCount "57"]
[EventDate "2024.12.27"]
[EventType "swiss"]
[EventCountry "GER"]
[SourceTitle "playchess.com"]
[Source "ChessBase"]
[SourceQuality "1"]
[TimeControl "40/5400+30:1800+30"]

1. d4 {[%emt 0:00:01]} d5 {[%emt 0:00:04]} 2. Bf4 {[%emt 0:00:03]} c5 {[%emt 0:00:03]} 3. e3 {[%emt 0:00:05]} Nc6 {[%emt 0:00:04]} 4. Nf3 {[%emt 0:00:04]} Nf6 {[%emt 0:00:04]} 5. Nbd2 {[%emt 0:00:03]} Bg4 {[%emt 0:00:08]} 6. c3 {[%emt 0:00:09]} e6 {[%emt 0:00:09]} 7. Qa4 {[%emt 0:00:04]} Bd6 {[%emt 0:02:07]} 8. Ba6 {[%emt 0:00:37]} Qd7 {[%emt 0:05:58]} 9. Bxd6 {[%emt 0:05:34]} bxa6 {[%emt 0:04:59]} 10. Bxc5 {[%emt 0:00:05]} Ne7 {[%emt 0:00:12]} 11. Qa3 {[%emt 0:11:17]} Rc8 {[%emt 0:07:28]} 12. Qxa6 {[%emt 0:04:17]} Nc6 {[%emt 0:04:58]} 13. O-O {[%emt 0:02:09]} Rc7 {[%emt 0:00:59]} 14. Rfc1 {[%emt 0:03:56]} Ne4 {[%emt 0:01:18]} 15. Nxe4 {[%emt 0:05:25]} dxe4 {[%emt 0:00:07]} 16. Nd2 {[%emt 0:00:17]} Nb8 {[%emt 0:03:04]} 17. Qa3 {[%emt 0:01:40]} f6 {[%emt 0:02:26]} 18. Nxe4 {[%emt 0:01:45]} Kf7 {[%emt 0:00:18]} 19. Ng3 {[%emt 0:01:38]} Rd8 {[%emt 0:01:14]} 20. f3 {[%emt 0:00:26]} Bf5 {[%emt 0:00:04]} 21. Nxf5 {[%emt 0:00:30]} exf5 {[%emt 0:00:04]} 22. Re1 {[%emt 0:00:51]} Nc6 {[%emt 0:00:20]} 23. e4 {[%emt 0:00:48]} fxe4 {[%emt 0:00:10]} 24. Rxe4 {[%emt 0:00:10]} Qf5 {[%emt 0:00:36]} 25. Rae1 {[%emt 0:01:56]} h5 {[%emt 0:00:27]} 26. b4 {[%emt 0:03:00]} h4 {[%emt 0:03:03]} 27. Rxh4 {[%emt 0:02:20]} Qg5 {[%emt 0:00:09]} 28. Rg4 {[%emt 0:01:18]} Qd2 {[%emt 0:00:05]} 29. Qb3+ {[%emt 0:00:11]} 1-0

[Event "LEM Niedersachsen-A-Open 2025"]
[Site "Verden"]
[Date "2025.01.05"]
[Round "7.25"]
[White "Langer, Michael S."]
[Black "Sayas Payyappat"]
[Result "1-0"]
[ECO "E90"]
[WhiteElo "1933"]
[BlackElo "1823"]
[Annotator "RC"]
[PlyCount "79"]
[EventDate "2024.12.27"]
[EventType "swiss"]
[EventCountry "GER"]
[SourceTitle "playchess.com"]
[Source "ChessBase"]
[SourceQuality "1"]
[TimeControl "40/5400+30:1800+30"]

1. Nf3 {[%emt 0:00:11]} Nc6 {[%emt 0:00:03]} 2. d4 {[%emt 0:00:21]} d6 {[%emt 0:00:11]} 3. c4 {[%emt 0:00:36]} g6 {[%emt 0:00:29]} 4. Nc3 {[%emt 0:04:28]} Bg7 {[%emt 0:01:09]} 5. h3 {[%emt 0:01:43]} Nf6 {[%emt 0:02:40]} 6. e4 {[%emt 0:01:28]} O-O {[%emt 0:00:13]} 7. Be3 {[%emt 0:01:11]} Re8 {[%emt 0:02:26]} 8. d5 {[%emt 0:06:12]} Nb8 {[%emt 0:03:28]} 9. Qd2 {[%emt 0:04:59]} e6 {[%emt 0:03:15]} 10. Be2 {[%emt 0:02:53]} exd5 {[%emt 0:02:24]} 11. exd5 {[%emt 0:00:11]} Bf5 {[%emt 0:00:34]} 12. O-O {[%emt 0:03:16]} Nbd7 {[%emt 0:05:00]} 13. Nd4 {[%emt 0:00:00]} Ne4 {[%emt 0:07:58]} 14. Nxe4 {[%emt 0:01:13]} Bxe4 {[%emt 0:00:44]} 15. Rae1 {[%emt 0:13:31]} Qe7 {[%emt 0:24:26]} 16. Bd1 {[%emt 0:18:32]} Nc5 {[%emt 0:43:30]} 17. Bc2 {[%emt 0:09:19]} Qf6 {[%emt 0:00:00]} 18. b4 {[%emt 0:10:16]} Bxc2 {[%emt 0:00:00]} 19. Qxc2 {[%emt 0:00:31]} Ne4 {[%emt 0:00:00]} 20. Nb5 {[%emt 0:01:11]} Re7 {[%emt 0:00:00]} 21. Bd4 {[%emt 0:05:34]} Qf5 {[%emt 0:00:00]} 22. Bxg7 {[%emt 0:01:27]} Kxg7 {[%emt 0:00:00]} 23. f3 {[%emt 0:01:40]} Ng3 {[%emt 0:00:00]} 24. Qc3+ {[%emt 0:00:37]} Re5 {[%emt 0:00:00]} 25. f4 {[%emt 0:01:12]} Rae8 {[%emt 0:00:00]} 26. fxe5 {[%emt 0:00:44]} Qxf1+ {[%emt 0:00:00]} 27. Rxf1 {[%emt 0:00:22]} Ne2+ {[%emt 0:00:00]} 28. Kf2 {[%emt 0:00:15]} Nxc3 {[%emt 0:00:00]} 29. Nxc3 {[%emt 0:00:05]} Rxe5 {[%emt 0:00:00]} 30. Re1 {[%emt 0:04:26]} Rxe1 {[%emt 0:00:00]} 31. Kxe1 {[%emt 0:00:05]} a6 {[%emt 0:00:00]} 32. Ke2 {[%emt 0:00:15]} Kf6 {[%emt 0:00:00]} 33. Ke3 {[%emt 0:00:25]} Ke5 {[%emt 0:00:00]} 34. g3 {[%emt 0:01:27]} f5 {[%emt 0:00:00]} 35. Ne2 {[%emt 0:00:54]} g5 {[%emt 0:00:00]} 36. h4 {[%emt 0:02:32]} h6 {[%emt 0:00:00]} 37. a4 {[%emt 0:01:05]} b6 {[%emt 0:00:00]} 38. a5 {[%emt 0:00:47]} Kf6 {[%emt 0:00:00]} 39. hxg5+ {[%emt 0:00:26]} Kxg5 {[%emt 0:00:00]} 40. b5 {[%emt 0:00:09]} 1-0

[Event "LEM Niedersachsen-A-Open 2025"]
[Site "Verden"]
[Date "2025.01.05"]
[Round "7.26"]
[White "Nuerenberg, Marius"]
[Black "Kozik, Andreas"]
[Result "1/2-1/2"]
[ECO "C02"]
[WhiteElo "1911"]
[BlackElo "1868"]
[Annotator "RC"]
[PlyCount "46"]
[EventDate "2024.12.27"]
[EventType "swiss"]
[EventCountry "GER"]
[SourceTitle "playchess.com"]
[Source "ChessBase"]
[SourceQuality "1"]
[TimeControl "40/5400+30:1800+30"]

1. e4 {[%emt 0:00:03]} e6 {[%emt 0:00:04]} 2. d4 {[%emt 0:00:13]} d5 {[%emt 0:00:06]} 3. e5 {[%emt 0:00:07]} c5 {[%emt 0:00:05]} 4. c3 {[%emt 0:00:04]} Nc6 {[%emt 0:00:07]} 5. Nf3 {[%emt 0:00:05]} Nge7 {[%emt 0:00:10]} 6. Na3 {[%emt 0:00:28]} cxd4 {[%emt 0:00:23]} 7. cxd4 {[%emt 0:00:17]} Nf5 {[%emt 0:00:26]} 8. Nc2 {[%emt 0:00:44]} Bd7 {[%emt 0:05:08]} 9. Bd3 {[%emt 0:04:30]} Qb6 {[%emt 0:00:18]} 10. Bxf5 {[%emt 0:02:10]} exf5 {[%emt 0:00:05]} 11. h4 {[%emt 0:15:42]} h6 {[%emt 0:01:06]} 12. Kf1 {[%emt 0:07:45]} Be6 {[%emt 0:01:03]} 13. Ng1 {[%emt 0:25:00]} g6 {[%emt 0:06:01]} 14. Ne2 {[%emt 0:02:24]} Be7 {[%emt 0:01:35]} 15. Rh3 {[%emt 0:03:14]} Qc7 {[%emt 0:07:18]} 16. Nf4 {[%emt 0:12:09]} Qd7 {[%emt 0:03:36]} 17. Bd2 {[%emt 0:03:29]} Rc8 {[%emt 0:13:38]} 18. a3 {[%emt 0:00:38]} Qd8 {[%emt 0:01:05]} 19. g3 {[%emt 0:01:06]} Na5 {[%emt 0:09:43]} 20. Bxa5 {[%emt 0:00:09]} Qxa5 {[%emt 0:00:10]} 21. Kg2 {[%emt 0:03:37]} O-O {[%emt 0:07:32]} 22. Ne3 {[%emt 0:03:32]} Rfd8 {[%emt 0:04:53]} 23. Rh1 {[%emt 0:00:35]} Qb6 {[%emt 0:02:01]} 1/2-1/2